bitfinex/quotes_BTCUSD_20250110
["timestamp","ask_amount","ask_price","bid_price","bid_amount"]
[1736507057696,0.0010854,95312.0,95311.0,0.82758793]
[1736507058046,8.54e-05,95312.0,95311.0,0.82958793]
[1736507058253,0.0010854,95312.0,95311.0,0.54938393]
[1736507058705,0.0010854,95312.0,95311.0,0.69738393]
[1736507058887,0.001,95312.0,95311.0,0.82238393]
[1736507061237,8.54e-05,95336.0,95330.0,0.00014681]
[1736507061440,8.54e-05,95336.0,95330.0,0.45110357]
[1736507061832,8.54e-05,95336.0,95330.0,0.61970736]
[1736507062242,8.54e-05,95336.0,95330.0,0.80671963]
[1736507062447,8.54e-05,95336.0,95330.0,0.80871963]
[1736507062829,8.54e-05,95336.0,95330.0,0.62170736]
[1736507063028,8.54e-05,95336.0,95330.0,0.61970736]
[1736507063440,0.0010853,95331.0,95330.0,0.8553758]
[1736507063732,0.0010853,95331.0,95330.0,0.8603758]
[1736507063941,0.0010853,95331.0,95330.0,0.86585204]
[1736507064085,0.0020853,95331.0,95330.0,0.6401836]
[1736507064805,0.0010853,95331.0,95330.0,0.65954364]
[1736507065223,0.0020853,95331.0,95330.0,0.66554364]
[1736507068012,0.0020853,95331.0,95330.0,0.89905418]
[1736507070220,0.0020853,95331.0,95330.0,0.66554364]
[1736507073997,0.0020853,95331.0,95330.0,0.65818364]
[1736507074212,0.0020853,95331.0,95330.0,0.66554364]
[1736507075447,0.0020853,95331.0,95330.0,0.68854364]
[1736507075671,0.0020853,95331.0,95330.0,0.78854364]
[1736507075948,0.0020853,95331.0,95330.0,0.68854364]
[1736507076178,0.0020853,95331.0,95330.0,0.78854364]
[1736507077985,0.0020853,95331.0,95330.0,0.68854364]
[1736507078187,0.0020853,95331.0,95330.0,0.78854364]
[1736507079218,0.0020853,95331.0,95330.0,0.68854364]
[1736507080065,0.0020853,95331.0,95330.0,0.66554364]
[1736507080240,0.0020853,95331.0,95330.0,0.61804364]
[1736507081988,8.53e-05,95331.0,95330.0,0.60404364]
[1736507082346,0.0020853,95331.0,95330.0,0.61604364]
[1736507083204,0.0010853,95331.0,95330.0,0.61104364]
[1736507083613,0.0010853,95331.0,95330.0,0.61604364]
[1736507083847,8.53e-05,95331.0,95330.0,0.60904364]
[1736507084236,0.0010853,95331.0,95330.0,0.61604364]
[1736507086235,0.0010853,95331.0,95330.0,0.60868364]
[1736507086454,0.0010853,95331.0,95330.0,0.61604364]
[1736507090335,0.0010853,95331.0,95330.0,0.60868364]
[1736507090556,0.0010853,95331.0,95330.0,0.61604364]
[1736507092305,0.0010853,95331.0,95330.0,0.53404364]
[1736507093395,0.0010853,95331.0,95330.0,0.52668364]
[1736507093598,0.0010853,95331.0,95330.0,0.53404364]
[1736507094381,0.0010853,95331.0,95330.0,0.76760217]
[1736507096122,0.0010853,95331.0,95330.0,0.53404364]
[1736507097980,0.0010853,95331.0,95330.0,0.58908896]
[1736507098141,0.0010853,95331.0,95330.0,0.4921492]
[1736507098777,0.0010853,95331.0,95330.0,0.25838384]
[1736507098959,0.0010853,95331.0,95330.0,0.25338384]
[1736507099347,0.0010853,95331.0,95330.0,0.25638384]
[1736507099725,0.0010853,95331.0,95330.0,0.24938384]
[1736507099726,8.53e-05,95331.0,95330.0,0.24938384]
[1736507100073,0.0010853,95331.0,95330.0,0.25538384]
[1736507100274,0.0010853,95331.0,95330.0,0.24561512]
[1736507108103,0.0010853,95331.0,95330.0,0.34991488]
[1736507110429,0.0010853,95331.0,95330.0,0.49991488]
[1736507111357,0.0010853,95331.0,95330.0,0.5998433]
[1736507111940,0.0010853,95331.0,95330.0,0.7553613]
[1736507112096,0.0010853,95331.0,95330.0,0.8346613]
[1736507112292,0.0010853,95331.0,95330.0,0.8396613]
[1736507112516,0.0020853,95331.0,95330.0,0.8336613]
[1736507112725,0.0010853,95331.0,95330.0,0.8336613]
[1736507112950,0.0020853,95331.0,95330.0,0.8426613]
[1736507113170,0.0010853,95331.0,95330.0,0.8336613]
[1736507113508,0.0010853,95331.0,95330.0,0.8376613]
[1736507114794,0.0010853,95331.0,95330.0,0.8426613]
[1736507118848,0.0010853,95331.0,95330.0,2.3353013]
[1736507119063,0.0010853,95331.0,95330.0,2.3426613]
[1736507119207,0.0010853,95331.0,95330.0,0.7353013]
[1736507119409,0.0010853,95331.0,95330.0,0.7101433]
[1736507119593,0.0010853,95331.0,95330.0,0.35491488]
[1736507119792,0.0010853,95331.0,95330.0,0.34755488]
[1736507119997,0.0010853,95331.0,95330.0,0.23277888]
[1736507120195,0.0010853,95331.0,95330.0,0.23995207]
[1736507120399,0.0010853,95331.0,95330.0,0.03015507]
[1736507120621,0.0799853,95331.0,95330.0,0.02283507]
[1736507120988,0.0799853,95331.0,95330.0,0.01383507]
[1736507120989,0.0789853,95331.0,95330.0,0.01383507]
[1736507121292,0.0789853,95331.0,95330.0,0.20120184]
[1736507121293,0.08689237,95331.0,95330.0,0.20120184]
[1736507121528,0.13259237,95331.0,95330.0,0.00883507]
[1736507121732,0.1246853,95331.0,95330.0,0.00883507]
[1736507121945,0.1246853,95331.0,95330.0,0.003]
[1736507122143,0.1246853,95331.0,95330.0,0.01336349]
[1736507122432,0.1246853,95331.0,95323.0,0.1405186]
[1736507122433,0.209803,95328.0,95323.0,0.1405186]
[1736507122652,0.0789,95325.0,95323.0,0.1405186]
[1736507122815,0.24440616,95328.0,95323.0,0.1405186]
[1736507122816,0.33441,95324.0,95323.0,0.1405186]
[1736507123217,0.0819,95321.0,95313.0,0.1405186]
[1736507123616,0.209823,95318.0,95311.0,0.0575458]
[1736507123824,0.1281,95317.0,95311.0,0.0575458]
[1736507124193,0.1281,95317.0,95311.0,0.05656]
[1736507125562,0.209828,95316.0,95311.0,0.05656]
[1736507125768,0.209828,95316.0,95311.0,0.05756]
[1736507125969,0.209828,95316.0,95311.0,0.05656]
[1736507126170,0.1281,95317.0,95311.0,0.05656]
[1736507126407,0.1341,95317.0,95311.0,0.05756]
[1736507126619,0.1301,95317.0,95311.0,0.05656]
[1736507127122,0.1301,95317.0,95311.0,0.05756]
[1736507127123,0.0389923,95316.0,95311.0,0.05756]
[1736507127350,0.005,95316.0,95311.0,0.05656]
[1736507127940,0.005,95316.0,95312.0,0.01038291]
[1736507128327,0.32461948,95315.0,95311.0,0.05656]
[1736507128727,0.32461948,95315.0,95312.0,0.01038291]
[1736507129156,0.32461948,95315.0,95311.0,0.05756]
[1736507129371,0.32461948,95315.0,95312.0,0.00014681]
[1736507129578,0.32461948,95315.0,95312.0,0.01053535]
[1736507129776,0.33161948,95315.0,95312.0,0.00014681]
[1736507130013,0.32661948,95315.0,95313.0,0.01038697]
[1736507130426,0.32861948,95315.0,95311.0,0.06388]
[1736507131061,0.32461948,95315.0,95311.0,0.06388]
[1736507131596,0.32561948,95315.0,95311.0,0.06388]
[1736507132197,0.32461948,95315.0,95311.0,0.06388]
[1736507132423,0.32661948,95315.0,95312.0,0.00765252]
[1736507132598,0.33606264,95315.0,95311.0,0.06388]
[1736507132835,0.33906264,95315.0,95312.0,0.00765252]
[1736507133035,0.33806264,95315.0,95311.0,0.06388]
[1736507133343,0.33906264,95315.0,95312.0,0.00765252]
[1736507133695,0.33606264,95315.0,95311.0,0.05656]
[1736507134052,0.419665,95314.0,95311.0,0.05656]
[1736507134855,0.209832,95314.0,95311.0,0.05656]
[1736507135063,0.68445648,95312.0,95311.0,0.05656]
[1736507135275,0.91035624,95312.0,95311.0,0.05656]
[1736507136262,0.91235624,95312.0,95311.0,0.05656]
[1736507136684,1.017656,95312.0,95311.0,0.05656]
[1736507136886,0.91335624,95312.0,95311.0,0.05656]
[1736507139142,0.91035624,95312.0,95311.0,0.05656]
[1736507139342,0.92135624,95312.0,95311.0,0.05756]
[1736507139767,0.91835624,95312.0,95311.0,0.05756]
[1736507140171,0.91335624,95312.0,95311.0,0.05656]
[1736507140384,1.025656,95312.0,95311.0,0.05756]
[1736507141269,1.14850919,95312.0,95311.0,0.05756]
[1736507141427,1.24850919,95312.0,95311.0,0.05756]
[1736507141629,1.24850919,95312.0,95311.0,0.00756]
[1736507141872,0.50495319,95308.0,95279.0,0.0009992]
[1736507142072,0.71355271,95308.0,95279.0,0.0009992]
[1736507142865,0.72255271,95308.0,95307.0,0.00112741]
[1736507143268,0.71355271,95308.0,95307.0,0.00012741]
[1736507143462,0.72255271,95308.0,95307.0,0.00112741]
[1736507144904,0.72555271,95308.0,95307.0,0.00112741]
[1736507146226,0.32461948,95281.0,95272.0,0.0001706]
[1736507146396,0.32461948,95281.0,95272.0,0.00124144]
[1736507146574,0.32461948,95281.0,95273.0,0.00769742]
[1736507147210,0.209907,95280.0,95272.0,0.00025034]
[1736507147417,0.32461948,95281.0,95273.0,0.00769742]
[1736507147635,0.32461948,95281.0,95272.0,0.00025034]
[1736507147838,0.32461948,95281.0,95273.0,0.00769742]
[1736507148064,0.32461948,95281.0,95272.0,0.00025034]
[1736507148241,0.32461948,95281.0,95272.0,0.00125034]
[1736507148705,0.32461948,95281.0,95273.0,0.00769742]
[1736507149073,0.32461948,95281.0,95273.0,0.00869742]
[1736507149269,0.33492837,95281.0,95273.0,0.00869742]
[1736507149476,0.01638294,95280.0,95273.0,0.00869742]
[1736507150075,0.33492837,95281.0,95273.0,0.00869742]
[1736507150961,0.33492837,95281.0,95273.0,0.00769742]
[1736507151342,0.33492837,95281.0,95273.0,0.00969742]
[1736507151721,0.209907,95280.0,95273.0,0.002]
[1736507151926,0.33492837,95281.0,95272.0,0.00025034]
[1736507152160,0.08353294,95280.0,95274.0,0.00769661]
[1736507152333,0.32461948,95279.0,95273.0,0.002]
[1736507152808,0.32461948,95279.0,95272.0,0.00025034]
[1736507153235,0.32461948,95279.0,95273.0,0.00769742]
[1736507153439,0.09188623,95278.0,95273.0,0.00769742]
[1736507153646,0.209912,95278.0,95272.0,0.00025034]
[1736507154407,0.47461948,95277.0,95272.0,0.00025034]
[1736507154620,0.209923,95273.0,95272.0,0.00025034]
[1736507154819,0.39352276,95273.0,95272.0,0.00025034]
[1736507155668,0.39952276,95273.0,95272.0,0.00025034]
[1736507156036,0.39352276,95273.0,95272.0,0.00025034]
[1736507156242,0.39952276,95273.0,95272.0,0.00025034]
[1736507157063,0.54952276,95273.0,95272.0,0.00025034]
[1736507158226,0.87414224,95273.0,95272.0,0.00025034]
[1736507158678,0.87614224,95273.0,95272.0,0.00025034]
[1736507159410,0.72614224,95273.0,95272.0,0.00025034]
[1736507160316,0.87614224,95273.0,95272.0,0.00025034]
[1736507160455,0.97599543,95273.0,95272.0,0.00025034]
[1736507160816,1.02409543,95273.0,95272.0,0.00025034]
[1736507160974,1.12839519,95273.0,95272.0,0.00025034]
[1736507162017,1.15139519,95273.0,95272.0,0.00025034]
[1736507164644,0.209965,95254.0,95251.0,0.0002824]
[1736507164843,0.10429976,95253.0,95251.0,0.0002824]
[1736507165287,0.209969,95252.0,95251.0,0.0002824]
[1736507165594,0.10429976,95253.0,95251.0,0.0002824]
[1736507165818,0.216969,95252.0,95251.0,0.0002824]
[1736507166016,0.209969,95252.0,95251.0,0.0002824]
[1736507166682,0.28338768,95252.0,95251.0,0.0002824]
[1736507167104,0.38768744,95252.0,95251.0,0.0002824]
[1736507167290,0.71330692,95252.0,95251.0,0.0002824]
[1736507167941,0.71930692,95252.0,95251.0,0.0002824]
[1736507168150,0.71330692,95252.0,95251.0,0.0002824]
[1736507168354,0.63988824,95252.0,95251.0,0.0002824]
[1736507168593,0.64688824,95252.0,95251.0,0.0002824]
[1736507168761,0.63888824,95252.0,95251.0,0.0002824]
[1736507168991,0.63988824,95252.0,95251.0,0.0002824]
[1736507169194,0.64788824,95252.0,95251.0,0.0002824]
[1736507169396,0.751188,95252.0,95251.0,0.0002824]
[1736507169827,0.753188,95252.0,95251.0,0.0002824]
[1736507170395,0.64888824,95252.0,95251.0,0.0002824]
[1736507172269,1.90192124,95252.0,95251.0,0.0002824]
[1736507172509,1.72735724,95252.0,95251.0,0.0002824]
[1736507172713,1.56540524,95252.0,95251.0,0.0002824]
[1736507172973,1.47595324,95252.0,95251.0,0.0002824]
[1736507173341,1.504595,95252.0,95251.0,0.0002824]
[1736507173553,0.977888,95252.0,95251.0,0.0002824]
[1736507173885,0.969888,95252.0,95251.0,0.0002824]
[1736507174125,0.87758824,95252.0,95251.0,0.0002824]
[1736507175792,0.80088824,95252.0,95251.0,0.0002824]
[1736507176202,0.33661948,95252.0,95251.0,0.0002824]
[1736507176588,0.33661948,95252.0,95251.0,0.01017219]
[1736507176793,0.32761948,95252.0,95251.0,0.0002824]
[1736507177002,0.32461948,95252.0,95251.0,0.0002824]
[1736507177227,0.33361948,95252.0,95251.0,0.0002824]
[1736507177427,0.32761948,95252.0,95251.0,0.0002824]
[1736507177927,0.33061948,95252.0,95251.0,0.0002824]
[1736507178344,0.43491924,95252.0,95251.0,0.0002824]
[1736507178561,0.43191924,95252.0,95251.0,0.0002824]
[1736507178743,0.42891924,95252.0,95251.0,0.0002824]
[1736507178904,0.43191924,95252.0,95251.0,0.0002824]
[1736507179098,0.53209385,95252.0,95251.0,0.0002824]
[1736507179313,0.43179291,95252.0,95251.0,0.0002824]
[1736507180223,0.42879291,95252.0,95251.0,0.0002824]
[1736507180422,0.43279291,95252.0,95251.0,0.0002824]
[1736507180796,0.43579291,95252.0,95251.0,0.0002824]
[1736507180950,0.44479291,95252.0,95251.0,0.0002824]
[1736507182022,0.44179291,95252.0,95251.0,0.0002824]
[1736507182201,0.44479291,95252.0,95251.0,0.0002824]
[1736507182763,0.44179291,95252.0,95251.0,0.0002824]
[1736507183197,0.43179291,95252.0,95251.0,0.0002824]
[1736507183603,0.58179291,95252.0,95251.0,0.0002824]
[1736507184159,0.59079291,95252.0,95251.0,0.0002824]
[1736507186362,0.44079291,95252.0,95251.0,0.0002824]
[1736507199515,0.44079291,95252.0,95235.0,0.0454]
[1736507199516,0.209982,95246.0,95235.0,0.04215891]
[1736507199718,0.209982,95246.0,95237.0,0.00014762]
[1736507199919,0.209982,95246.0,95238.0,0.00990643]
[1736507200636,0.216982,95246.0,95238.0,0.00990643]
[1736507200853,0.32449315,95241.0,95238.0,0.00990643]
[1736507201247,0.419991,95240.0,95237.0,0.00014762]
[1736507202986,0.423991,95240.0,95237.0,0.00014762]
[1736507203238,0.419991,95240.0,95237.0,0.00014762]
[1736507203395,0.424991,95240.0,95237.0,0.00014762]
[1736507203598,0.52093792,95240.0,95237.0,0.00014762]
[1736507203997,0.424991,95240.0,95237.0,0.00014762]
[1736507204251,0.425991,95240.0,95237.0,0.00014762]
[1736507206290,0.32449315,95239.0,95237.0,0.00014762]
[1736507206569,0.21,95238.0,95237.0,0.00014762]
[1736507206774,0.63879291,95238.0,95237.0,0.00014762]
[1736507208687,0.78879291,95238.0,95237.0,0.00014762]
[1736507208892,0.87059291,95238.0,95237.0,0.00014762]
[1736507209097,0.87159291,95238.0,95237.0,0.00014762]
[1736507209505,0.89459291,95238.0,95237.0,0.00014762]
[1736507209714,0.89959291,95238.0,95237.0,0.00014762]
[1736507209916,1.00389267,95238.0,95237.0,0.00014762]
[1736507210331,0.99889267,95238.0,95237.0,0.00014762]
[1736507210541,0.99789267,95238.0,95237.0,0.00014762]
[1736507210746,0.81479291,95238.0,95237.0,0.00014762]
[1736507211174,0.82379291,95238.0,95237.0,0.00014762]
[1736507211386,0.80079291,95238.0,95237.0,0.00014762]
[1736507211591,0.65079291,95238.0,95237.0,0.00014762]
[1736507211851,0.65079291,95238.0,95237.0,0.08234762]
[1736507211852,0.54649315,95238.0,95237.0,0.08234762]
[1736507212255,0.54649315,95238.0,95237.0,0.00014762]
[1736507212456,0.65079291,95238.0,95237.0,0.00014762]
[1736507212871,0.79179291,95238.0,95237.0,0.00014762]
[1736507213258,0.79779291,95238.0,95237.0,0.00014762]
[1736507213488,0.79179291,95238.0,95237.0,0.00014762]
[1736507213906,0.80079291,95238.0,95237.0,0.00014762]
[1736507214111,0.90509267,95238.0,95237.0,0.00014762]
[1736507214322,0.90209267,95238.0,95237.0,0.00014762]
[1736507214498,0.90309267,95238.0,95237.0,0.00014762]
[1736507214672,0.89409267,95238.0,95237.0,0.00014762]
[1736507215097,0.78879291,95238.0,95237.0,0.00014762]
[1736507215253,0.79179291,95238.0,95237.0,0.00014762]
[1736507215953,0.80079291,95238.0,95237.0,0.00014762]
[1736507216156,0.82379291,95238.0,95237.0,0.00014762]
[1736507216364,1.00209291,95238.0,95237.0,0.00014762]
[1736507216569,1.02818781,95238.0,95237.0,0.00014762]
[1736507216732,0.53453915,95217.0,95216.0,0.14011396]
[1736507216936,0.53453915,95217.0,95216.0,0.1505358]
[1736507217146,0.53453915,95217.0,95216.0,0.01042184]
[1736507217927,0.53453915,95217.0,95216.0,0.00048643]
[1736507219311,0.53553915,95217.0,95216.0,0.00048643]
[1736507219931,0.53453915,95217.0,95216.0,0.00048643]
[1736507220258,0.53653915,95217.0,95216.0,0.00048643]
[1736507220601,0.53453915,95217.0,95216.0,0.00048643]
[1736507220818,0.53953915,95217.0,95216.0,0.00048643]
[1736507221380,0.32949315,95217.0,95216.0,0.00048643]
[1736507221580,0.33049315,95217.0,95216.0,0.00048643]
[1736507222101,0.32549315,95217.0,95216.0,0.00048643]
[1736507222298,0.32949315,95217.0,95216.0,0.00048643]
[1736507222724,0.32449315,95217.0,95216.0,0.01042394]
[1736507222923,0.53953915,95217.0,95216.0,0.00048643]
[1736507223557,0.54997811,95217.0,95216.0,0.00048643]
[1736507225790,0.33993211,95217.0,95216.0,0.00048643]
[1736507226073,0.33993211,95217.0,95216.0,0.08742394]
[1736507226207,0.33993211,95217.0,95216.0,0.07748643]
[1736507226414,0.33993211,95217.0,95216.0,0.08742394]
[1736507227591,0.33993211,95217.0,95216.0,0.13282394]
[1736507229077,0.32949315,95217.0,95216.0,0.13282394]
[1736507229282,0.32949315,95217.0,95216.0,0.14018394]
[1736507229863,0.32449315,95217.0,95216.0,0.2444837]
[1736507230067,0.32949315,95217.0,95216.0,0.2444837]
[1736507230270,0.32449315,95217.0,95216.0,0.2444837]
[1736507230623,0.32449315,95247.0,95229.0,0.1296]
[1736507231049,0.15,95246.0,95236.0,0.210003]
[1736507231296,0.15,95246.0,95231.0,0.210015]
[1736507231501,0.209984,95245.0,95237.0,0.00991256]
[1736507231735,0.209984,95245.0,95231.0,0.210015]
[1736507231943,0.209984,95245.0,95238.0,0.00991148]
[1736507232144,0.209984,95245.0,95231.0,0.210015]
[1736507232548,0.209984,95245.0,95232.0,0.00991798]
[1736507232864,0.209989,95243.0,95232.0,0.00991798]
[1736507233071,0.15,95241.0,95232.0,0.00991798]
[1736507233306,0.210009,95234.0,95228.0,0.14078263]
[1736507233532,0.210009,95234.0,95233.0,0.00991208]
[1736507233870,0.210018,95230.0,95228.0,0.14078263]
[1736507234084,0.210018,95230.0,95222.0,0.082]
[1736507234331,0.46431676,95230.0,95229.0,0.00991641]
[1736507234527,0.78880991,95230.0,95229.0,0.00991641]
[1736507234704,0.78880991,95230.0,95216.0,0.1881966]
[1736507234705,0.32449315,95220.0,95216.0,0.14126906]
[1736507235114,0.32449315,95220.0,95217.0,0.00992941]
[1736507236096,0.210042,95219.0,95217.0,0.00992941]
[1736507236711,0.33511386,95220.0,95217.0,0.00992941]
[1736507236862,0.33611386,95220.0,95217.0,0.00992941]
[1736507237079,0.33611386,95220.0,95216.0,0.00048643]
[1736507237485,0.001,95219.0,95216.0,0.00048643]
[1736507238099,0.001,95219.0,95217.0,0.00993256]
[1736507238769,0.33511386,95220.0,95217.0,0.00993256]
[1736507238941,0.33711386,95220.0,95217.0,0.00993256]
[1736507239361,0.33511386,95220.0,95217.0,0.00993256]
[1736507239513,0.001,95219.0,95217.0,0.00993256]
[1736507239920,0.33511386,95220.0,95217.0,0.00993256]
[1736507240163,0.33711386,95220.0,95217.0,0.00993256]
[1736507240568,0.33511386,95220.0,95217.0,0.00993256]
[1736507241906,0.001,95219.0,95217.0,0.00993256]
[1736507242270,0.33511386,95220.0,95217.0,0.00993256]
[1736507242562,0.33911386,95220.0,95217.0,0.00993256]
[1736507242786,0.33511386,95220.0,95217.0,0.00993256]
[1736507243022,0.33511386,95220.0,95216.0,0.00048643]
[1736507243228,0.004,95219.0,95218.0,0.00993049]
[1736507243462,0.33511386,95220.0,95216.0,0.00048643]
[1736507243705,0.33511386,95220.0,95218.0,0.00993049]
[1736507243878,0.33911386,95220.0,95217.0,0.00993157]
[1736507244174,0.33911386,95220.0,95219.0,0.00992941]
[1736507244425,0.33911386,95220.0,95216.0,0.00048643]
[1736507244623,0.33911386,95220.0,95219.0,0.00992941]
[1736507244792,0.33911386,95220.0,95216.0,0.00048643]
[1736507245010,0.33911386,95220.0,95219.0,0.00992941]
[1736507245209,0.33911386,95220.0,95216.0,0.00048643]
[1736507245412,0.33911386,95220.0,95219.0,0.00992941]
[1736507245614,0.33911386,95220.0,95216.0,0.00048643]
[1736507245615,0.33511386,95220.0,95216.0,0.00048643]
[1736507245791,0.33511386,95220.0,95219.0,0.00992941]
[1736507245994,0.33511386,95220.0,95216.0,0.00048643]
[1736507246240,0.33511386,95220.0,95219.0,0.00970718]
[1736507246539,0.33911386,95220.0,95216.0,0.00048643]
[1736507246871,0.33511386,95220.0,95219.0,0.00970718]
[1736507247072,0.33511386,95220.0,95216.0,0.00048643]
[1736507247447,0.33511386,95220.0,95217.0,0.00971308]
[1736507248334,0.33911386,95220.0,95217.0,0.00971308]
[1736507248502,0.33511386,95220.0,95217.0,0.00971308]
[1736507248908,0.33911386,95220.0,95217.0,0.00971308]
[1736507252927,0.33911386,95220.0,95216.0,0.00048643]
[1736507253233,0.210042,95219.0,95217.0,0.00971358]
[1736507253435,0.210042,95219.0,95216.0,0.00048643]
[1736507253679,0.210042,95219.0,95218.0,0.00971249]
[1736507253839,0.210042,95219.0,95217.0,0.00971358]
[1736507254061,0.210042,95219.0,95216.0,0.00048643]
[1736507254266,0.89457715,95219.0,95218.0,0.00971249]
[1736507254589,0.360046,95217.0,95216.0,0.00048643]
[1736507254851,0.46434576,95217.0,95216.0,0.00048643]
[1736507256026,0.46934576,95217.0,95216.0,0.00048643]
[1736507256875,0.54984576,95217.0,95216.0,0.00048643]
[1736507257079,0.65414552,95217.0,95216.0,0.00048643]
[1736507257298,0.65514552,95217.0,95216.0,0.00048643]
[1736507258328,0.67814552,95217.0,95216.0,0.00048643]
[1736507259527,0.57384576,95217.0,95216.0,0.00048643]
[1736507260109,0.89833891,95217.0,95216.0,0.00048643]
[1736507260536,1.04583891,95217.0,95216.0,0.00048643]
[1736507261286,1.04083891,95217.0,95216.0,0.00048643]
[1736507261509,1.03983891,95217.0,95216.0,0.00048643]
[1736507261710,1.15613867,95217.0,95216.0,0.00048643]
[1736507262353,1.14713867,95217.0,95216.0,0.00048643]
[1736507262757,1.15613867,95217.0,95216.0,0.00048643]
[1736507263450,0.123,95213.0,95212.0,0.0001706]
[1736507263629,0.37729976,95213.0,95212.0,0.0002661]
[1736507263977,0.45789976,95213.0,95212.0,0.0002661]
[1736507264178,0.55789976,95213.0,95212.0,0.0002661]
[1736507264517,0.68457415,95201.0,95200.0,0.0052661]
[1736507264764,0.78887391,95201.0,95200.0,0.00541358]
[1736507266238,0.79787391,95201.0,95200.0,0.00541358]
[1736507266754,0.88107391,95201.0,95200.0,0.00541358]
[1736507267192,0.88407391,95201.0,95200.0,0.00541358]
[1736507267601,0.87207391,95201.0,95200.0,0.00541358]
[1736507267829,0.87507391,95201.0,95200.0,0.00541358]
[1736507268029,0.80087391,95201.0,95200.0,0.00541358]
[1736507268213,0.79187391,95201.0,95200.0,0.00541358]
[1736507268400,0.78887391,95201.0,95200.0,0.00541358]
[1736507268599,0.80087391,95201.0,95200.0,0.00541358]
[1736507268989,0.81161296,95201.0,95200.0,0.00541358]
[1736507269396,0.91378126,95201.0,95200.0,0.00541358]
[1736507269742,0.81161296,95201.0,95200.0,0.00041358]
[1736507269951,0.80861296,95201.0,95200.0,0.00041358]
[1736507270371,0.81161296,95201.0,95200.0,0.00041358]
[1736507270784,0.80261296,95201.0,95200.0,0.00041358]
[1736507270987,0.81161296,95201.0,95200.0,0.00041358]
[1736507274399,0.15,95200.0,95191.0,0.09575498]
[1736507274601,0.360101,95192.0,95191.0,0.09587609]
[1736507275034,0.68459415,95192.0,95191.0,0.09587609]
[1736507275241,0.68459415,95192.0,95191.0,0.17527609]
[1736507276104,0.47449315,95192.0,95191.0,0.17527609]
[1736507276523,0.32449315,95192.0,95191.0,0.22417609]
[1736507277123,0.32949315,95192.0,95191.0,0.22417609]
[1736507277446,0.32449315,95192.0,95191.0,0.22417609]
[1736507278220,0.32449315,95200.0,95199.0,0.210086]
[1736507278351,0.32449315,95200.0,95199.0,0.339886]
[1736507278582,0.32449315,95200.0,95199.0,0.45150576]
[1736507278903,0.210023,95228.0,95214.0,0.210052]
[1736507278904,0.32449315,95223.0,95214.0,0.210052]
[1736507279101,0.32449315,95223.0,95215.0,0.1298]
[1736507279328,0.210035,95222.0,95215.0,0.1298]
[1736507280265,0.210035,95222.0,95205.0,0.1298]
[1736507280266,0.210037,95221.0,95205.0,0.1298]
[1736507280416,0.10429976,95222.0,95216.0,0.00972646]
[1736507280622,0.210059,95212.0,95210.0,0.00732]
[1736507281878,0.214059,95212.0,95210.0,0.00732]
[1736507282081,0.004,95212.0,95205.0,0.1298]
[1736507282284,0.004,95212.0,95206.0,0.21007]
[1736507282863,0.004,95212.0,95210.0,0.210059]
[1736507283107,0.004,95212.0,95211.0,0.0802]
[1736507283288,0.004,95212.0,95211.0,0.13813188]
[1736507283693,0.004,95212.0,95211.0,0.13918208]
[1736507283903,0.32449315,95223.0,95212.0,0.210057]
[1736507284100,0.001,95212.0,95211.0,0.13813188]
[1736507284304,0.004,95212.0,95211.0,0.1284]
[1736507284618,0.003,95212.0,95211.0,0.1284]
[1736507284823,0.003,95212.0,95211.0,0.1294]
[1736507285024,0.32449315,95223.0,95211.0,0.1294]
[1736507285166,0.32449315,95223.0,95212.0,0.07615015]
[1736507285569,0.32449315,95223.0,95213.0,0.10429976]
[1736507285776,0.32449315,95223.0,95216.0,0.0453]
[1736507285975,0.32449315,95223.0,95217.0,0.10534986]
[1736507286180,0.32449315,95223.0,95218.0,0.0759]
[1736507287530,0.32449315,95223.0,95218.0,0.0769]
[1736507287734,0.32549315,95223.0,95218.0,0.0769]
[1736507287907,0.32449315,95223.0,95218.0,0.0759]
[1736507288347,0.32749315,95223.0,95218.0,0.0759]
[1736507288991,0.32749315,95223.0,95216.0,0.0453]
[1736507289195,0.13704908,95222.0,95205.0,0.0479]
[1736507289368,0.10429976,95222.0,95205.0,0.0479]
[1736507290127,0.32449315,95221.0,95205.0,0.0479]
[1736507291382,0.32749315,95221.0,95205.0,0.0479]
[1736507291584,0.32749315,95221.0,95206.0,0.00732]
[1736507291946,0.32749315,95221.0,95207.0,0.00972854]
[1736507292148,0.37067244,95221.0,95207.0,0.00972854]
[1736507292554,0.15,95217.0,95207.0,0.00972854]
[1736507292758,0.10429976,95216.0,95207.0,0.00972854]
[1736507293020,0.32449315,95215.0,95199.0,0.00732]
[1736507293396,0.32449315,95215.0,95208.0,0.0109416]
[1736507293603,0.32449315,95215.0,95199.0,0.00732]
[1736507294234,0.04853125,95214.0,95200.0,0.01095136]
[1736507294627,0.10429976,95213.0,95200.0,0.01095136]
[1736507294836,0.15,95212.0,95194.0,0.00732]
[1736507294997,0.15,95208.0,95190.0,0.00732]
[1736507295204,0.15,95206.0,95190.0,0.00732]
[1736507295405,0.15,95204.0,95190.0,0.00732]
[1736507295605,0.15,95202.0,95190.0,0.00732]
[1736507297296,0.15,95202.0,95191.0,0.00112111]
[1736507297675,0.15,95202.0,95191.0,0.00012111]
[1736507298252,0.151,95202.0,95191.0,0.00012111]
[1736507298427,0.15,95202.0,95191.0,0.00012111]
[1736507298725,0.152,95202.0,95191.0,0.00012111]
[1736507299125,0.32449315,95201.0,95191.0,0.00112111]
[1736507299523,0.32449315,95201.0,95191.0,0.00012111]
[1736507300639,0.32649315,95201.0,95191.0,0.00012111]
[1736507305050,0.32449315,95200.0,95191.0,0.00012111]
[1736507306225,0.32449315,95200.0,95192.0,0.0776]
[1736507306638,0.32449315,95200.0,95192.0,0.0901349]
[1736507306839,0.32549315,95200.0,95192.0,0.0901349]
[1736507306994,0.32449315,95200.0,95192.0,0.0901349]
[1736507307401,0.32549315,95200.0,95192.0,0.0911349]
[1736507311013,0.15,95198.0,95192.0,0.0911349]
[1736507311220,0.15,95198.0,95192.0,0.0786]
[1736507311934,0.15,95198.0,95192.0,0.0776]
[1736507312085,0.15,95198.0,95192.0,0.0786]
[1736507313165,0.15,95198.0,95193.0,0.01253267]
[1736507313710,0.32449315,95199.0,95197.0,0.21009]
[1736507314285,0.32449315,95199.0,95198.0,0.0125257]
[1736507314509,0.15,95198.0,95192.0,0.0776]
[1736507315564,0.15,95198.0,95192.0,0.0786]
[1736507316049,0.15,95198.0,95193.0,0.00732]
[1736507317007,0.32449315,95197.0,95193.0,0.00732]
[1736507317632,0.32449315,95197.0,95193.0,0.00832]
[1736507319032,0.32449315,95195.0,95193.0,0.00732]
[1736507319238,0.32449315,95195.0,95193.0,0.001]
[1736507319875,0.32449315,95195.0,95191.0,0.00012111]
[1736507320255,0.32449315,95195.0,95193.0,0.001]